[Event "Titled Tuesday Blitz May 4 2021"]
[White "Suasnabar, Jesus"]
[Black "Titichoca Daza, Daniel"]
[WhiteFideId "3800776"]
[BlackFideId "3309550"]
[WhiteElo "2002"]
[BlackElo "1910"]
[Result "0-1"]
[Round "02"]
[TimeControl "180+1"]
[Date "2021.05.04"]
[WhiteClock "0:00:01"]
[BlackClock "0:01:00"]

1. d4 {[%clk 0:02:58]}  Nf6 {[%clk 0:02:56]} 2. Nf3 {[%clk 0:02:58]}  c5 {[%clk 0:02:53]} 3. dxc5 {[%clk 0:02:56]}  Qa5+ {[%clk 0:02:52]} 4. Nc3 {[%clk 0:02:53]}  Qxc5 {[%clk 0:02:52]} 5. e4 {[%clk 0:02:51]}  d6 {[%clk 0:02:49]} 6. Be3 {[%clk 0:02:48]}  Qc7 {[%clk 0:02:47]} 7. Be2 {[%clk 0:02:43]}  a6 {[%clk 0:02:46]} 8. a4 {[%clk 0:02:38]}  e6 {[%clk 0:02:36]} 9. O-O {[%clk 0:02:37]}  Be7 {[%clk 0:02:35]} 10. Qd2 {[%clk 0:02:30]}  O-O {[%clk 0:02:31]} 11. Nd4 {[%clk 0:02:27]}  Nc6 {[%clk 0:02:23]} 12. Nxc6 {[%clk 0:02:19]}  Qxc6 {[%clk 0:02:19]} 13. Bf3 {[%clk 0:02:10]}  e5 {[%clk 0:02:15]} 14. Bg5 {[%clk 0:02:06]}  Be6 {[%clk 0:02:12]} 15. Bxf6 {[%clk 0:01:27]}  Bxf6 {[%clk 0:01:59]} 16. Nd5 {[%clk 0:01:26]}  Bxd5 {[%clk 0:01:48]} 17. exd5 {[%clk 0:01:25]}  Qc7 {[%clk 0:01:38]} 18. Be4 {[%clk 0:01:16]}  g6 {[%clk 0:01:35]} 19. b3 {[%clk 0:01:09]}  Bg7 {[%clk 0:01:35]} 20. Rac1 {[%clk 0:01:04]}  a5 {[%clk 0:01:34]} 21. c4 {[%clk 0:00:59]}  f5 {[%clk 0:01:33]} 22. Bf3 {[%clk 0:00:47]}  Qc5 {[%clk 0:01:32]} 23. Be2 {[%clk 0:00:39]}  e4 {[%clk 0:01:31]} 24. g3 {[%clk 0:00:34]}  f4 {[%clk 0:01:30]} 25. gxf4 {[%clk 0:00:32]}  Bh6 {[%clk 0:01:28]} 26. Rce1 {[%clk 0:00:28]}  Bxf4 {[%clk 0:01:24]} 27. Qc3 {[%clk 0:00:27]}  Rae8 {[%clk 0:01:20]} 28. Bg4 {[%clk 0:00:24]}  Re5 {[%clk 0:01:19]} 29. Be6+ {[%clk 0:00:17]}  Kg7 {[%clk 0:01:17]} 30. Rxe4 {[%clk 0:00:17]}  Kh6 {[%clk 0:01:10]} 31. Rxe5 {[%clk 0:00:11]}  Bxe5 {[%clk 0:01:11]} 32. Qe3+ {[%clk 0:00:09]}  Qxe3 {[%clk 0:01:09]} 33. fxe3 {[%clk 0:00:09]}  Bxh2+ {[%clk 0:01:09]} 34. Kg2 {[%clk 0:00:09]}  Rxf1 {[%clk 0:01:07]} 35. Kxf1 {[%clk 0:00:09]}  Be5 {[%clk 0:01:06]} 36. Kg2 {[%clk 0:00:08]}  Kg5 {[%clk 0:01:05]} 37. Kf3 {[%clk 0:00:08]}  h5 {[%clk 0:01:05]} 38. Ke4 {[%clk 0:00:04]}  b6 {[%clk 0:01:01]} 39. Kf3 {[%clk 0:00:01]}  Kh4 {[%clk 0:01:00]} 0-1


[Site "https://www.chess.com"]

[Event "Titled Tuesday Blitz May 4 2021"]
[White "Suvorov, Luca"]
[Black "Gedgafov, Chamal"]
[WhiteFideId "12977071"]
[BlackFideId "34130621"]
[WhiteElo "2127"]
[BlackElo "2005"]
[Result "1-0"]
[Round "02"]
[TimeControl "180+1"]
[Date "2021.05.04"]
[WhiteClock "0:00:15"]
[BlackClock "0:00:49"]

1. d4 {[%clk 0:03:00]}  e6 {[%clk 0:02:57]} 2. c4 {[%clk 0:03:01]}  Nf6 {[%clk 0:02:56]} 3. Nc3 {[%clk 0:03:01]}  Bb4 {[%clk 0:02:56]} 4. e3 {[%clk 0:03:02]}  O-O {[%clk 0:02:53]} 5. Ne2 {[%clk 0:03:02]}  b6 {[%clk 0:02:53]} 6. a3 {[%clk 0:03:00]}  Be7 {[%clk 0:02:53]} 7. Ng3 {[%clk 0:02:59]}  Bb7 {[%clk 0:02:53]} 8. e4 {[%clk 0:02:59]}  d6 {[%clk 0:02:53]} 9. Be2 {[%clk 0:02:59]}  e5 {[%clk 0:02:52]} 10. d5 {[%clk 0:02:57]}  g6 {[%clk 0:02:52]} 11. O-O {[%clk 0:02:57]}  Nbd7 {[%clk 0:02:50]} 12. b4 {[%clk 0:02:55]}  a5 {[%clk 0:02:50]} 13. Be3 {[%clk 0:02:55]}  axb4 {[%clk 0:02:50]} 14. axb4 {[%clk 0:02:56]}  Rxa1 {[%clk 0:02:50]} 15. Qxa1 {[%clk 0:02:57]}  Re8 {[%clk 0:02:44]} 16. Qa7 {[%clk 0:02:55]}  Qb8 {[%clk 0:02:43]} 17. Ra1 {[%clk 0:02:54]}  Bf8 {[%clk 0:02:40]} 18. Nb5 {[%clk 0:02:49]}  c6 {[%clk 0:02:21]} 19. Nc3 {[%clk 0:02:46]}  Qxa7 {[%clk 0:02:11]} 20. Rxa7 {[%clk 0:02:43]}  Rb8 {[%clk 0:02:11]} 21. Na4 {[%clk 0:01:49]}  h5 {[%clk 0:01:59]} 22. h4 {[%clk 0:01:47]}  Ng4 {[%clk 0:01:49]} 23. Bxg4 {[%clk 0:01:33]}  hxg4 {[%clk 0:01:47]} 24. Rxb7 {[%clk 0:01:02]}  Rxb7 {[%clk 0:01:40]} 25. dxc6 {[%clk 0:01:02]}  Rc7 {[%clk 0:01:39]} 26. cxd7 {[%clk 0:01:02]}  Rxd7 {[%clk 0:01:40]} 27. Bxb6 {[%clk 0:01:02]}  d5 {[%clk 0:01:35]} 28. exd5 {[%clk 0:00:53]}  Bxb4 {[%clk 0:01:34]} 29. Ne4 {[%clk 0:00:54]}  Kg7 {[%clk 0:01:32]} 30. Bc5 {[%clk 0:00:37]}  Ba5 {[%clk 0:01:24]} 31. Bb6 {[%clk 0:00:33]}  Bb4 {[%clk 0:01:23]} 32. Nac5 {[%clk 0:00:28]}  Re7 {[%clk 0:01:14]} 33. d6 {[%clk 0:00:27]}  Re8 {[%clk 0:01:01]} 34. d7 {[%clk 0:00:26]}  Ra8 {[%clk 0:01:02]} 35. d8=Q {[%clk 0:00:24]}  Rxd8 {[%clk 0:01:01]} 36. Bxd8 {[%clk 0:00:24]}  f5 {[%clk 0:00:59]} 37. Ne6+ {[%clk 0:00:19]}  Kf7 {[%clk 0:00:57]} 38. N4g5+ {[%clk 0:00:19]}  Kg8 {[%clk 0:00:56]} 39. c5 {[%clk 0:00:19]}  g3 {[%clk 0:00:55]} 40. fxg3 {[%clk 0:00:17]}  e4 {[%clk 0:00:56]} 41. c6 {[%clk 0:00:18]}  e3 {[%clk 0:00:53]} 42. c7 {[%clk 0:00:18]}  Bc5 {[%clk 0:00:49]} 43. Kf1 {[%clk 0:00:15]} 1-0


[Site "https://www.chess.com"]

[Event "Titled Tuesday Blitz May 4 2021"]
[White "Svidler, Peter"]
[Black "Piesik, Piotr"]
[WhiteFideId "4102142"]
[BlackFideId "1136194"]
[WhiteElo "2754"]
[BlackElo "2369"]
[Result "0-1"]
[Round "02"]
[TimeControl "180+1"]
[Date "2021.05.04"]
[WhiteClock "0:00:07"]
[BlackClock "0:00:02"]

1. e4 {[%clk 0:03:00]}  g6 {[%clk 0:02:59]} 2. d4 {[%clk 0:03:00]}  Bg7 {[%clk 0:02:59]} 3. Nc3 {[%clk 0:02:59]}  c6 {[%clk 0:02:59]} 4. h3 {[%clk 0:02:58]}  d6 {[%clk 0:02:59]} 5. Nf3 {[%clk 0:02:58]}  Nf6 {[%clk 0:02:59]} 6. a4 {[%clk 0:02:57]}  O-O {[%clk 0:02:59]} 7. Be3 {[%clk 0:02:57]}  Nbd7 {[%clk 0:02:58]} 8. a5 {[%clk 0:02:41]}  e5 {[%clk 0:02:57]} 9. dxe5 {[%clk 0:02:41]}  dxe5 {[%clk 0:02:57]} 10. Bc4 {[%clk 0:02:40]}  Qe7 {[%clk 0:02:57]} 11. O-O {[%clk 0:02:27]}  Nc5 {[%clk 0:02:55]} 12. Nd2 {[%clk 0:02:23]}  Rd8 {[%clk 0:02:53]} 13. Qb1 {[%clk 0:02:12]}  Nh5 {[%clk 0:02:50]} 14. Qa2 {[%clk 0:02:11]}  Ne6 {[%clk 0:02:47]} 15. Rad1 {[%clk 0:02:06]}  Nd4 {[%clk 0:02:40]} 16. Na4 {[%clk 0:01:54]}  Be6 {[%clk 0:02:38]} 17. c3 {[%clk 0:01:47]}  Bxc4 {[%clk 0:02:32]} 18. Qxc4 {[%clk 0:01:44]}  Ne6 {[%clk 0:02:31]} 19. Nf3 {[%clk 0:01:43]}  Nhf4 {[%clk 0:02:28]} 20. h4 {[%clk 0:01:39]}  Qc7 {[%clk 0:02:12]} 21. b4 {[%clk 0:01:37]}  Rd7 {[%clk 0:02:00]} 22. g3 {[%clk 0:01:35]}  Nh5 {[%clk 0:02:00]} 23. Nb2 {[%clk 0:01:30]}  Rxd1 {[%clk 0:01:53]} 24. Rxd1 {[%clk 0:01:29]}  b5 {[%clk 0:01:54]} 25. axb6 {[%clk 0:01:14]}  axb6 {[%clk 0:01:53]} 26. b5 {[%clk 0:01:15]}  cxb5 {[%clk 0:01:50]} 27. Qxc7 {[%clk 0:01:15]}  Nxc7 {[%clk 0:01:49]} 28. Bxb6 {[%clk 0:01:16]}  Ne6 {[%clk 0:01:47]} 29. Rd5 {[%clk 0:01:14]}  Nf6 {[%clk 0:01:32]} 30. Rxe5 {[%clk 0:01:03]}  Nd7 {[%clk 0:01:31]} 31. Rxb5 {[%clk 0:01:03]}  Bxc3 {[%clk 0:01:22]} 32. Nc4 {[%clk 0:00:57]}  Ra4 {[%clk 0:01:15]} 33. Nd6 {[%clk 0:00:54]}  Ra6 {[%clk 0:01:04]} 34. Nc8 {[%clk 0:00:54]}  Ra8 {[%clk 0:00:52]} 35. Ne7+ {[%clk 0:00:53]}  Kf8 {[%clk 0:00:52]} 36. Nd5 {[%clk 0:00:52]}  Nxb6 {[%clk 0:00:47]} 37. Rxb6 {[%clk 0:00:52]}  Ba5 {[%clk 0:00:31]} 38. Rb5 {[%clk 0:00:44]}  Bd8 {[%clk 0:00:29]} 39. Ne5 {[%clk 0:00:41]}  Ra4 {[%clk 0:00:21]} 40. f3 {[%clk 0:00:35]}  Ra7 {[%clk 0:00:20]} 41. Kg2 {[%clk 0:00:34]}  Kg7 {[%clk 0:00:19]} 42. Nc6 {[%clk 0:00:24]}  Rd7 {[%clk 0:00:19]} 43. f4 {[%clk 0:00:21]}  Bf6 {[%clk 0:00:14]} 44. e5 {[%clk 0:00:17]}  Bd8 {[%clk 0:00:14]} 45. Kf3 {[%clk 0:00:17]}  f6 {[%clk 0:00:08]} 46. Nxd8 {[%clk 0:00:11]}  Rxd8 {[%clk 0:00:04]} 47. Rb7+ {[%clk 0:00:10]}  Kh6 {[%clk 0:00:03]} 48. Nxf6 {[%clk 0:00:10]}  Rd3+ {[%clk 0:00:02]} 49. Ke4 {[%clk 0:00:07]}  Nc5# {[%clk 0:00:02]} 0-1


[Site "https://www.chess.com"]

[Event "Titled Tuesday Blitz May 4 2021"]
[White "TigrVShlyape"]
[Black "Sergey85Rodchenkov"]
[WhiteElo "2823"]
[BlackElo "2538"]
[Result "1-0"]
[Round "02"]
[TimeControl "180+1"]
[Date "2021.05.04"]
[WhiteClock "0:01:00"]
[BlackClock "0:00:41"]

1. e4 {[%clk 0:03:00]}  c5 {[%clk 0:02:59]} 2. Nf3 {[%clk 0:03:00]}  d6 {[%clk 0:02:59]} 3. d4 {[%clk 0:02:59]}  cxd4 {[%clk 0:02:59]} 4. Nxd4 {[%clk 0:02:59]}  Nf6 {[%clk 0:02:59]} 5. Nc3 {[%clk 0:02:59]}  a6 {[%clk 0:02:59]} 6. a4 {[%clk 0:02:58]}  e5 {[%clk 0:02:57]} 7. Nf3 {[%clk 0:02:57]}  Be7 {[%clk 0:02:56]} 8. Bc4 {[%clk 0:02:56]}  Be6 {[%clk 0:02:56]} 9. Qe2 {[%clk 0:02:55]}  Qc8 {[%clk 0:02:53]} 10. Bb3 {[%clk 0:02:51]}  O-O {[%clk 0:02:51]} 11. O-O {[%clk 0:02:50]}  Nbd7 {[%clk 0:02:47]} 12. Rd1 {[%clk 0:02:44]}  Nc5 {[%clk 0:02:42]} 13. Ba2 {[%clk 0:02:34]}  Bxa2 {[%clk 0:02:25]} 14. Rxa2 {[%clk 0:02:31]}  Ne6 {[%clk 0:02:23]} 15. Bg5 {[%clk 0:02:13]}  Nxg5 {[%clk 0:02:06]} 16. Nxg5 {[%clk 0:02:11]}  Qc6 {[%clk 0:02:06]} 17. Nf3 {[%clk 0:02:10]}  Rac8 {[%clk 0:02:05]} 18. Ne1 {[%clk 0:01:49]}  g6 {[%clk 0:01:53]} 19. Raa1 {[%clk 0:01:39]}  Qc4 {[%clk 0:01:45]} 20. Kf1 {[%clk 0:01:20]}  Qb4 {[%clk 0:01:37]} 21. Nd3 {[%clk 0:01:18]}  Qc4 {[%clk 0:01:29]} 22. a5 {[%clk 0:01:15]}  Rfe8 {[%clk 0:01:23]} 23. Ra4 {[%clk 0:01:14]}  Qc6 {[%clk 0:01:22]} 24. Nb4 {[%clk 0:01:13]}  Qc4 {[%clk 0:01:13]} 25. Nbd5 {[%clk 0:01:06]}  Qxe2+ {[%clk 0:01:12]} 26. Kxe2 {[%clk 0:01:05]}  Nxd5 {[%clk 0:01:11]} 27. Rxd5 {[%clk 0:01:05]}  Rc6 {[%clk 0:01:06]} 28. Rb4 {[%clk 0:01:04]}  Bd8 {[%clk 0:01:01]} 29. Rxb7 {[%clk 0:01:02]}  Bc7 {[%clk 0:00:48]} 30. Kd3 {[%clk 0:01:01]}  Rb8 {[%clk 0:00:41]} 31. Rxb8+ {[%clk 0:01:00]}  Bxb8 {[%clk 0:00:41]} 32. Na2 {[%clk 0:01:00]} 1-0


[Site "https://www.chess.com"]

[Event "Titled Tuesday Blitz May 4 2021"]
[White "Timmermans, Mark"]
[Black "Ibrayev, Nurlan"]
[WhiteFideId "1026399"]
[BlackFideId "13700650"]
[WhiteElo "2460"]
[BlackElo "2366"]
[Result "1/2-1/2"]
[Round "02"]
[TimeControl "180+1"]
[Date "2021.05.04"]
[WhiteClock "0:01:03"]
[BlackClock "0:00:18"]

1. b4 {[%clk 0:03:00]}  c6 {[%clk 0:02:55]} 2. Bb2 {[%clk 0:03:00]}  Qb6 {[%clk 0:02:55]} 3. a3 {[%clk 0:03:00]}  a5 {[%clk 0:02:55]} 4. c4 {[%clk 0:03:01]}  d6 {[%clk 0:02:53]} 5. d4 {[%clk 0:03:01]}  axb4 {[%clk 0:02:44]} 6. c5 {[%clk 0:03:00]}  dxc5 {[%clk 0:02:37]} 7. dxc5 {[%clk 0:03:01]}  Qc7 {[%clk 0:02:37]} 8. axb4 {[%clk 0:03:02]}  Rxa1 {[%clk 0:02:37]} 9. Bxa1 {[%clk 0:03:02]}  Na6 {[%clk 0:02:37]} 10. Bc3 {[%clk 0:03:01]}  Nf6 {[%clk 0:02:36]} 11. Nf3 {[%clk 0:02:59]}  Nd5 {[%clk 0:02:36]} 12. Qb3 {[%clk 0:02:59]}  Nxc3 {[%clk 0:02:22]} 13. Nxc3 {[%clk 0:03:00]}  e5 {[%clk 0:02:22]} 14. e4 {[%clk 0:02:53]}  Be6 {[%clk 0:02:21]} 15. Bc4 {[%clk 0:02:53]}  Bxc4 {[%clk 0:02:21]} 16. Qxc4 {[%clk 0:02:54]}  Be7 {[%clk 0:02:20]} 17. O-O {[%clk 0:02:54]}  O-O {[%clk 0:02:20]} 18. Nd1 {[%clk 0:02:47]}  Rd8 {[%clk 0:02:16]} 19. Ne3 {[%clk 0:02:47]}  g6 {[%clk 0:02:16]} 20. Rb1 {[%clk 0:02:38]}  h5 {[%clk 0:01:58]} 21. h3 {[%clk 0:02:37]}  Kg7 {[%clk 0:01:56]} 22. Rc1 {[%clk 0:02:26]}  Bf6 {[%clk 0:01:31]} 23. b5 {[%clk 0:02:19]}  Nb8 {[%clk 0:01:25]} 24. bxc6 {[%clk 0:01:57]}  bxc6 {[%clk 0:01:25]} 25. Qc3 {[%clk 0:01:57]}  Nd7 {[%clk 0:01:22]} 26. Rd1 {[%clk 0:01:52]}  Rb8 {[%clk 0:01:13]} 27. g4 {[%clk 0:01:33]}  hxg4 {[%clk 0:01:11]} 28. hxg4 {[%clk 0:01:34]}  Kg8 {[%clk 0:01:09]} 29. g5 {[%clk 0:01:29]}  Bg7 {[%clk 0:01:09]} 30. Ng4 {[%clk 0:01:30]}  Rb5 {[%clk 0:01:04]} 31. Qd3 {[%clk 0:01:27]}  Nxc5 {[%clk 0:01:00]} 32. Qd8+ {[%clk 0:01:27]}  Qxd8 {[%clk 0:01:00]} 33. Rxd8+ {[%clk 0:01:28]}  Kh7 {[%clk 0:00:59]} 34. Nf6+ {[%clk 0:01:20]}  Bxf6 {[%clk 0:00:58]} 35. gxf6 {[%clk 0:01:21]}  Nxe4 {[%clk 0:00:48]} 36. Rf8 {[%clk 0:01:21]}  Rb7 {[%clk 0:00:31]} 37. Nxe5 {[%clk 0:01:17]}  Nxf6 {[%clk 0:00:31]} 38. Nxc6 {[%clk 0:01:16]}  Kg7 {[%clk 0:00:31]} 39. Rc8 {[%clk 0:01:15]}  Rb1+ {[%clk 0:00:29]} 40. Kg2 {[%clk 0:01:14]}  Rb2 {[%clk 0:00:29]} 41. Kf3 {[%clk 0:01:08]}  Nd5 {[%clk 0:00:26]} 42. Ne5 {[%clk 0:01:02]}  Rb3+ {[%clk 0:00:25]} 43. Ke4 {[%clk 0:01:02]}  Nf6+ {[%clk 0:00:24]} 44. Kf4 {[%clk 0:01:02]}  Rb4+ {[%clk 0:00:24]} 45. Kf3 {[%clk 0:01:02]}  Rb3+ {[%clk 0:00:24]} 46. Kf4 {[%clk 0:01:03]}  Nh5+ {[%clk 0:00:23]} 47. Ke4 {[%clk 0:01:03]}  Nf6+ {[%clk 0:00:18]} 48. Kf4 {[%clk 0:01:03]} 1/2-1/2


[Site "https://www.chess.com"]

[Event "Titled Tuesday Blitz May 4 2021"]
[White "Tisaj, Domen"]
[Black "Zaichenko, Daria"]
[WhiteFideId "14628708"]
[BlackFideId "4197453"]
[WhiteElo "2243"]
[BlackElo "2039"]
[Result "1-0"]
[Round "02"]
[TimeControl "180+1"]
[Date "2021.05.04"]
[WhiteClock "0:01:39"]
[BlackClock "0:01:41"]

1. d4 {[%clk 0:03:00]}  d5 {[%clk 0:02:59]} 2. Bf4 {[%clk 0:02:58]}  Nf6 {[%clk 0:02:58]} 3. e3 {[%clk 0:02:58]}  Bf5 {[%clk 0:02:57]} 4. c4 {[%clk 0:02:56]}  e6 {[%clk 0:02:56]} 5. Nc3 {[%clk 0:02:54]}  Be7 {[%clk 0:02:55]} 6. Qb3 {[%clk 0:02:54]}  b6 {[%clk 0:02:55]} 7. cxd5 {[%clk 0:02:53]}  exd5 {[%clk 0:02:54]} 8. Nb5 {[%clk 0:02:44]}  Bd6 {[%clk 0:02:34]} 9. Bxd6 {[%clk 0:02:32]}  cxd6 {[%clk 0:02:33]} 10. Rc1 {[%clk 0:02:33]}  O-O {[%clk 0:02:14]} 11. Nc7 {[%clk 0:02:32]}  Nbd7 {[%clk 0:02:14]} 12. Nxa8 {[%clk 0:02:31]}  Qxa8 {[%clk 0:02:14]} 13. Nf3 {[%clk 0:02:31]}  Ne4 {[%clk 0:02:09]} 14. Bb5 {[%clk 0:02:23]}  Ndf6 {[%clk 0:02:08]} 15. O-O {[%clk 0:02:11]}  Bg4 {[%clk 0:02:05]} 16. Qc2 {[%clk 0:02:05]}  Bxf3 {[%clk 0:02:03]} 17. gxf3 {[%clk 0:02:05]}  Ng5 {[%clk 0:02:02]} 18. Qf5 {[%clk 0:02:03]}  h6 {[%clk 0:02:00]} 19. Rc7 {[%clk 0:01:57]}  Ne6 {[%clk 0:01:55]} 20. Re7 {[%clk 0:01:48]}  a6 {[%clk 0:01:50]} 21. Bd3 {[%clk 0:01:44]}  Qd8 {[%clk 0:01:42]} 22. Ra7 {[%clk 0:01:43]}  Nc7 {[%clk 0:01:42]} 23. Rc1 {[%clk 0:01:41]}  Nfe8 {[%clk 0:01:41]} 24. Qh7# {[%clk 0:01:39]} 1-0


[Site "https://www.chess.com"]

[Event "Titled Tuesday Blitz May 4 2021"]
[White "Torkkola, Henri"]
[Black "Ashiev, Eduard"]
[WhiteFideId "507660"]
[BlackFideId "4130090"]
[WhiteElo "2137"]
[BlackElo "2106"]
[Result "1-0"]
[Round "02"]
[TimeControl "180+1"]
[Date "2021.05.04"]
[WhiteClock "0:00:09"]
[BlackClock "0:00:03"]

1. d4 {[%clk 0:03:00]}  d6 {[%clk 0:02:59]} 2. Bf4 {[%clk 0:03:01]}  Nf6 {[%clk 0:02:58]} 3. Nf3 {[%clk 0:03:00]}  g6 {[%clk 0:02:58]} 4. h3 {[%clk 0:02:58]}  Bg7 {[%clk 0:02:58]} 5. e3 {[%clk 0:02:59]}  O-O {[%clk 0:02:58]} 6. Be2 {[%clk 0:02:59]}  c5 {[%clk 0:02:57]} 7. c3 {[%clk 0:02:59]}  b6 {[%clk 0:02:56]} 8. O-O {[%clk 0:02:58]}  Nbd7 {[%clk 0:02:56]} 9. a4 {[%clk 0:02:58]}  Bb7 {[%clk 0:02:54]} 10. Nbd2 {[%clk 0:02:56]}  a6 {[%clk 0:02:39]} 11. Bh2 {[%clk 0:02:56]}  Rc8 {[%clk 0:02:38]} 12. Bd3 {[%clk 0:02:53]}  Re8 {[%clk 0:02:26]} 13. Qe2 {[%clk 0:02:52]}  Ra8 {[%clk 0:02:22]} 14. e4 {[%clk 0:02:51]}  cxd4 {[%clk 0:02:18]} 15. cxd4 {[%clk 0:02:51]}  e5 {[%clk 0:02:18]} 16. dxe5 {[%clk 0:02:40]}  dxe5 {[%clk 0:02:15]} 17. Rfd1 {[%clk 0:02:39]}  Qe7 {[%clk 0:02:06]} 18. Rac1 {[%clk 0:02:36]}  Nc5 {[%clk 0:01:49]} 19. Bb1 {[%clk 0:02:30]}  Nh5 {[%clk 0:01:45]} 20. Nc4 {[%clk 0:02:17]}  Bh6 {[%clk 0:01:10]} 21. Rc3 {[%clk 0:02:04]}  Nxa4 {[%clk 0:01:06]} 22. Rcd3 {[%clk 0:02:00]}  Nc5 {[%clk 0:01:04]} 23. Rd6 {[%clk 0:01:54]}  Rad8 {[%clk 0:00:53]} 24. Bxe5 {[%clk 0:01:47]}  f6 {[%clk 0:00:44]} 25. Bh2 {[%clk 0:01:35]}  Nf4 {[%clk 0:00:38]} 26. Bxf4 {[%clk 0:01:16]}  Bxf4 {[%clk 0:00:37]} 27. Rxb6 {[%clk 0:01:11]}  Bc7 {[%clk 0:00:27]} 28. Ba2 {[%clk 0:00:38]}  Kg7 {[%clk 0:00:24]} 29. Rb4 {[%clk 0:00:27]}  Rxd1+ {[%clk 0:00:19]} 30. Qxd1 {[%clk 0:00:26]}  Bxe4 {[%clk 0:00:19]} 31. Ne3 {[%clk 0:00:18]}  Ba5 {[%clk 0:00:14]} 32. Rc4 {[%clk 0:00:17]}  Bxf3 {[%clk 0:00:13]} 33. Qxf3 {[%clk 0:00:18]}  Rd8 {[%clk 0:00:11]} 34. b4 {[%clk 0:00:14]}  Bc7 {[%clk 0:00:05]} 35. bxc5 {[%clk 0:00:14]}  Rd1+ {[%clk 0:00:05]} 36. Qxd1 {[%clk 0:00:13]}  Qe5 {[%clk 0:00:04]} 37. Ng4 {[%clk 0:00:11]}  Qh2+ {[%clk 0:00:03]} 38. Nxh2 {[%clk 0:00:09]} 1-0


[Site "https://www.chess.com"]

[Event "Titled Tuesday Blitz May 4 2021"]
[White "Valle Maytin, Luis Enrique"]
[Black "WelshTiger"]
[WhiteFideId "3503666"]
[WhiteElo "2299"]
[BlackElo "2478"]
[Result "1-0"]
[Round "02"]
[TimeControl "180+1"]
[Date "2021.05.04"]
[WhiteClock "0:00:13"]
[BlackClock "0:00:05"]

1. e4 {[%clk 0:03:00]}  c5 {[%clk 0:02:55]} 2. Nf3 {[%clk 0:02:59]}  Nc6 {[%clk 0:02:54]} 3. d4 {[%clk 0:02:59]}  cxd4 {[%clk 0:02:54]} 4. Nxd4 {[%clk 0:03:00]}  Nf6 {[%clk 0:02:55]} 5. Nc3 {[%clk 0:02:54]}  d6 {[%clk 0:02:54]} 6. Bg5 {[%clk 0:02:50]}  Bd7 {[%clk 0:02:55]} 7. Qd2 {[%clk 0:02:49]}  Rc8 {[%clk 0:02:54]} 8. Be2 {[%clk 0:02:47]}  Nxd4 {[%clk 0:02:53]} 9. Qxd4 {[%clk 0:02:46]}  Qa5 {[%clk 0:02:54]} 10. Bxf6 {[%clk 0:02:36]}  gxf6 {[%clk 0:02:53]} 11. Rd1 {[%clk 0:02:33]}  Bg7 {[%clk 0:02:39]} 12. O-O {[%clk 0:02:25]}  O-O {[%clk 0:02:32]} 13. f4 {[%clk 0:02:14]}  f5 {[%clk 0:02:23]} 14. e5 {[%clk 0:02:13]}  Bc6 {[%clk 0:02:24]} 15. b4 {[%clk 0:02:03]}  dxe5 {[%clk 0:02:08]} 16. fxe5 {[%clk 0:02:00]}  Qxe5 {[%clk 0:02:08]} 17. Qxe5 {[%clk 0:01:33]}  Bxe5 {[%clk 0:02:08]} 18. Nd5 {[%clk 0:01:31]}  Bxd5 {[%clk 0:01:37]} 19. Rxd5 {[%clk 0:01:29]}  Bf6 {[%clk 0:01:30]} 20. c4 {[%clk 0:01:28]}  e6 {[%clk 0:01:29]} 21. Rd7 {[%clk 0:01:27]}  a5 {[%clk 0:00:57]} 22. Rxb7 {[%clk 0:01:13]}  axb4 {[%clk 0:00:57]} 23. Rxb4 {[%clk 0:01:14]}  Rfd8 {[%clk 0:00:57]} 24. Rc1 {[%clk 0:01:05]}  Rd2 {[%clk 0:00:56]} 25. Bf3 {[%clk 0:01:01]}  Rxa2 {[%clk 0:00:48]} 26. c5 {[%clk 0:00:59]}  Bg5 {[%clk 0:00:48]} 27. Rcc4 {[%clk 0:00:21]}  Rxc5 {[%clk 0:00:47]} 28. Rxc5 {[%clk 0:00:20]}  Be3+ {[%clk 0:00:47]} 29. Kf1 {[%clk 0:00:21]}  Bxc5 {[%clk 0:00:47]} 30. Rb8+ {[%clk 0:00:20]}  Kg7 {[%clk 0:00:47]} 31. Rb7 {[%clk 0:00:21]}  Kg6 {[%clk 0:00:44]} 32. h4 {[%clk 0:00:19]}  h5 {[%clk 0:00:42]} 33. Rb8 {[%clk 0:00:17]}  Rf2+ {[%clk 0:00:20]} 34. Ke1 {[%clk 0:00:17]}  Ra2 {[%clk 0:00:18]} 35. Kf1 {[%clk 0:00:16]}  Bf2 {[%clk 0:00:14]} 36. Rg8+ {[%clk 0:00:15]}  Kf6 {[%clk 0:00:15]} 37. Bxh5 {[%clk 0:00:14]}  Bxh4 {[%clk 0:00:14]} 38. Rf8 {[%clk 0:00:14]}  Ke5 {[%clk 0:00:14]} 39. Rxf7 {[%clk 0:00:14]}  Kf4 {[%clk 0:00:14]} 40. Bf3 {[%clk 0:00:14]}  e5 {[%clk 0:00:14]} 41. Bd5 {[%clk 0:00:14]}  e4 {[%clk 0:00:12]} 42. Bxa2 {[%clk 0:00:13]}  Ke3 {[%clk 0:00:05]} 43. Rxf5 {[%clk 0:00:13]} 1-0


[Site "https://www.chess.com"]

[Event "Titled Tuesday Blitz May 4 2021"]
[White "Veiga, Emerson de Sousa"]
[Black "Wilson, Elvin"]
[WhiteFideId "2151898"]
[BlackFideId "2014874"]
[WhiteElo "2034"]
[BlackElo "2223"]
[Result "1-0"]
[Round "02"]
[TimeControl "180+1"]
[Date "2021.05.04"]
[WhiteClock "0:00:15"]
[BlackClock "0:00:01"]

1. e4 {[%clk 0:03:00]}  e6 {[%clk 0:02:59]} 2. d4 {[%clk 0:03:00]}  d5 {[%clk 0:02:58]} 3. Nc3 {[%clk 0:02:59]}  Bb4 {[%clk 0:02:56]} 4. Ne2 {[%clk 0:02:58]}  dxe4 {[%clk 0:02:54]} 5. a3 {[%clk 0:02:58]}  Bxc3+ {[%clk 0:02:54]} 6. Nxc3 {[%clk 0:02:59]}  Nc6 {[%clk 0:02:54]} 7. Bb5 {[%clk 0:02:58]}  Ne7 {[%clk 0:02:54]} 8. Nxe4 {[%clk 0:02:58]}  O-O {[%clk 0:02:54]} 9. Be3 {[%clk 0:02:49]}  e5 {[%clk 0:02:32]} 10. dxe5 {[%clk 0:02:43]}  Nxe5 {[%clk 0:02:24]} 11. Qe2 {[%clk 0:02:22]}  c6 {[%clk 0:02:18]} 12. Ba4 {[%clk 0:02:18]}  Qa5+ {[%clk 0:02:13]} 13. Nc3 {[%clk 0:02:16]}  Nd5 {[%clk 0:02:13]} 14. Bb3 {[%clk 0:01:45]}  Nxc3 {[%clk 0:02:08]} 15. Qd2 {[%clk 0:01:32]}  Rd8 {[%clk 0:01:59]} 16. Qxc3 {[%clk 0:01:05]}  Qxc3+ {[%clk 0:01:58]} 17. bxc3 {[%clk 0:01:05]}  b6 {[%clk 0:01:54]} 18. O-O {[%clk 0:00:58]}  c5 {[%clk 0:01:53]} 19. Bg5 {[%clk 0:00:55]}  Re8 {[%clk 0:01:23]} 20. Rfe1 {[%clk 0:00:52]}  Bb7 {[%clk 0:01:15]} 21. Bf4 {[%clk 0:00:49]}  Ng6 {[%clk 0:01:09]} 22. Bg3 {[%clk 0:00:47]}  b5 {[%clk 0:01:00]} 23. c4 {[%clk 0:00:45]}  a6 {[%clk 0:00:57]} 24. h4 {[%clk 0:00:42]}  h5 {[%clk 0:00:56]} 25. f3 {[%clk 0:00:40]}  Rad8 {[%clk 0:00:50]} 26. Rxe8+ {[%clk 0:00:36]}  Rxe8 {[%clk 0:00:50]} 27. cxb5 {[%clk 0:00:35]}  axb5 {[%clk 0:00:49]} 28. c4 {[%clk 0:00:29]}  Re3 {[%clk 0:00:36]} 29. Rb1 {[%clk 0:00:28]}  bxc4 {[%clk 0:00:19]} 30. Bxc4 {[%clk 0:00:29]}  Bxf3 {[%clk 0:00:14]} 31. gxf3 {[%clk 0:00:27]}  Rxf3 {[%clk 0:00:14]} 32. Rb3 {[%clk 0:00:27]}  Rf5 {[%clk 0:00:08]} 33. Kg2 {[%clk 0:00:23]}  Kh7 {[%clk 0:00:08]} 34. Rf3 {[%clk 0:00:21]}  Rxf3 {[%clk 0:00:06]} 35. Kxf3 {[%clk 0:00:21]}  f5 {[%clk 0:00:06]} 36. a4 {[%clk 0:00:18]}  Ne7 {[%clk 0:00:05]} 37. a5 {[%clk 0:00:16]}  Nc6 {[%clk 0:00:05]} 38. a6 {[%clk 0:00:16]}  Kg6 {[%clk 0:00:02]} 39. Bd5 {[%clk 0:00:16]}  Na7 {[%clk 0:00:01]} 40. Bb8 {[%clk 0:00:15]}  Nb5 {[%clk 0:00:01]} 41. a7 {[%clk 0:00:15]} 1-0


[Site "https://www.chess.com"]